bitfinex/quotes_SOLUSD_20251214
["timestamp","ask_amount","ask_price","bid_price","bid_amount"]
[1765755277620,0.72,129.44,129.4,27.04786611]
[1765755277920,8.44,129.45,129.4,27.74786611]
[1765755278075,8.44,129.45,129.44,7.35937145]
[1765755278278,9.16,129.45,129.44,7.35937145]
[1765755278525,9.16,129.45,129.41,19.31716693]
[1765755278806,8.44,129.45,129.44,15.08495859]
[1765755279372,9.16,129.45,129.42,7.72628351]
[1765755279612,0.72,129.44,129.4,7.72744827]
[1765755279908,0.72,129.44,129.39,19.42118904]
[1765755279909,0.72,129.44,129.43,7.35937145]
[1765755280079,8.44,129.45,129.44,7.72558714]
[1765755280280,9.16,129.49,129.44,15.08495859]
[1765755280502,0.96540006,129.48,129.46,7.35937145]
[1765755280822,1.68540006,129.48,129.46,7.35937145]
[1765755280974,1.68540006,129.48,129.47,7.35937145]
[1765755280975,0.96540006,129.48,129.47,7.35937145]
[1765755281306,8.44,129.49,129.47,7.35937145]
[1765755281506,8.44,129.49,129.48,7.35937145]
[1765755281894,8.44,129.49,129.45,7.35937145]
[1765755282089,0.96540006,129.48,129.45,7.35937145]
[1765755282305,1.68540006,129.48,129.45,7.35937145]
[1765755282482,0.72,129.47,129.44,7.35937145]
[1765755282682,0.72,129.47,129.38,9.50994492]
[1765755282683,13.0470912,129.44,129.38,7.72870882]
[1765755282879,9.16,129.43,129.4,7.35937145]
[1765755283409,9.16,129.43,129.39,7.72824116]
[1765755283615,9.16,129.43,129.41,7.35937145]
[1765755283817,0.72,129.42,129.39,7.35937145]
[1765755283986,0.72,129.42,129.37,7.72967221]
[1765755284186,0.72,129.42,129.38,7.35937145]
[1765755284914,0.72,129.42,129.38,7.72913284]
[1765755285210,0.72,129.42,129.37,7.72966101]
[1765755285419,8.80994492,129.41,129.38,7.72916465]
[1765755285580,9.16,129.43,129.4,7.35937145]
[1765755285912,0.72,129.42,129.4,7.35937145]
[1765755286420,0.72,129.42,129.38,7.35937145]
[1765755287095,8.80994492,129.41,129.37,7.35937145]
[1765755287412,8.80994492,129.41,129.35,15.09017165]
[1765755287413,7.35937145,129.4,129.35,15.09017165]
[1765755287586,16.16931637,129.39,129.33,7.73171491]
[1765755287787,16.16931637,129.37,129.32,7.35937145]
[1765755287988,16.16931637,129.37,129.31,7.35937145]
[1765755288195,0.72,129.36,129.31,7.35937145]
[1765755288815,0.72,129.36,129.32,7.35937145]
[1765755288994,0.72,129.36,129.33,7.35937145]
[1765755289199,0.72,129.36,129.34,7.35937145]
[1765755289398,0.72,129.36,129.32,27.06464583]
[1765755289399,0.72,129.36,129.33,7.35937145]
[1765755290313,0.72,129.36,129.29,13.7470912]
[1765755290314,8.80994492,129.35,129.29,7.73412623]
[1765755290518,0.72,129.34,129.23,38.68772243]
[1765755290720,8.44,129.33,129.3,7.37205975]
[1765755290915,8.44,129.33,129.29,7.37205975]
[1765755291100,0.72,129.32,129.29,7.37205975]
[1765755291517,0.72,129.32,129.3,7.37205975]
[1765755291894,0.72,129.32,129.29,7.37205975]
[1765755292294,0.72,129.32,129.3,7.37205975]
[1765755292698,0.72,129.32,129.29,7.37205975]
[1765755292903,8.44,129.33,129.31,7.37205975]
[1765755293105,0.72,129.32,129.3,7.37205975]
[1765755293319,0.72,129.32,129.29,15.1063915]
[1765755293505,16.18200467,129.31,129.26,15.10829329]
[1765755293835,16.18200467,129.31,129.25,7.37205975]
[1765755294039,8.80994492,129.29,129.25,7.37205975]
[1765755294321,8.44,129.28,129.23,7.37205975]
[1765755294526,9.16,129.28,129.25,7.37205975]
[1765755294895,0.72,129.27,129.25,7.37205975]
[1765755295393,0.72,129.27,129.23,19.34420932]
[1765755295622,0.72,129.27,129.24,4.43418341]
[1765755296134,0.72,129.27,129.23,19.34420932]
[1765755296135,8.44,129.27,129.26,4.43418341]
[1765755296503,9.14,129.27,129.23,19.34420932]
[1765755296832,0.7,129.26,129.25,12.17112731]
[1765755297037,0.7,129.3,129.25,12.17112731]
[1765755297214,0.7,129.29,129.25,12.17112731]
[1765755297522,0.7,129.29,129.26,4.43418341]
[1765755297902,8.44,129.31,129.28,4.43418341]
[1765755298097,8.44,129.31,129.29,4.43418341]
[1765755298299,8.44,129.31,129.25,27.07930366]
[1765755298300,0.7,129.3,129.28,4.43418341]
[1765755298521,8.44,129.31,129.29,4.43418341]
[1765755298722,8.44,129.31,129.3,4.43418341]
[1765755298965,8.44,129.31,129.3,12.16813545]
[1765755299231,8.44,129.35,129.3,32.19301557]
[1765755299425,8.44,129.35,129.3,27.75883216]
[1765755299426,0.96644502,129.34,129.3,27.75883216]
[1765755299730,8.44,129.35,129.31,0.69]
[1765755299929,8.44,129.35,129.3,27.75883216]
[1765755300231,1.66644502,129.34,129.25,0.1]
[1765755300430,8.80994492,129.33,129.27,13.0470912]
[1765755300603,0.96659449,129.32,129.3,7.7336796]
[1765755300928,1.66659449,129.32,129.26,17.48127461]
[1765755301224,1.66659449,129.32,129.29,12.16834266]
[1765755301225,0.96659449,129.32,129.29,12.16834266]
[1765755301426,0.96659449,129.32,129.27,7.73565316]
[1765755301427,0.7,129.31,129.27,7.73565316]
[1765755301601,9.406744,129.3,129.28,7.73498162]
[1765755301802,9.406744,129.3,129.27,7.73561183]
[1765755302029,0.7,129.29,129.27,7.73561183]
[1765755302327,5.13418341,129.29,129.24,7.73739084]
[1765755302507,5.13418341,129.29,129.24,7.73736683]
[1765755302704,0.7,129.28,129.25,4.43418341]
[1765755302901,0.7,129.28,129.26,7.73634535]
[1765755303096,9.406744,129.3,129.27,4.43418341]
[1765755303313,0.7,129.29,129.26,25.21761996]
[1765755303522,0.7,129.29,129.25,7.73680049]
[1765755303523,0.96689356,129.28,129.25,7.73680049]
[1765755303725,0.96689356,129.28,129.25,12.1709839]
[1765755303930,0.7,129.27,129.25,12.1709839]
[1765755304130,0.96681877,129.29,129.26,4.43418341]
[1765755304327,0.96681877,129.29,129.27,4.43418341]
[1765755304534,0.96681877,129.29,129.28,4.43418341]
[1765755304825,8.44,129.3,129.28,4.43418341]
[1765755305036,1.66681877,129.29,129.26,4.43418341]
[1765755305229,5.13418341,129.28,129.21,0.2]
[1765755305430,5.40115177,129.27,129.23,7.73803599]
[1765755305606,6.10115177,129.27,129.22,7.73857118]
[1765755305808,0.7,129.26,129.23,7.73812613]
[1765755306023,8.44,129.25,129.23,7.73812613]
[1765755306218,8.44,129.25,129.23,4.43418341]
[1765755306421,0.7,129.24,129.21,7.93891648]
[1765755306626,4.43418341,129.23,129.21,0.2]
[1765755307027,0.7,129.22,129.21,0.2]
[1765755307711,0.7,129.22,129.16,0.1]
[1765755307712,8.80994492,129.21,129.16,0.1]
[1765755308036,4.43418341,129.17,129.07,0.69]
[1765755308234,84.16,129.2,129.13,4.43418341]
[1765755308441,9.16,129.2,129.16,4.43418341]
[1765755308619,0.1,129.21,129.16,4.43418341]
[1765755308620,0.1,129.21,129.19,4.43418341]
[1765755308949,8.46,129.2,129.18,7.74113639]
[1765755309418,9.16,129.2,129.18,12.1753198]
[1765755309620,9.16,129.2,129.18,7.74113639]
[1765755309823,8.46,129.19,129.18,12.1753198]
[1765755310425,8.46,129.19,129.18,7.74113639]
[1765755310623,8.46,129.19,129.18,12.1753198]
[1765755310837,8.46,129.19,129.18,31.52816079]
[1765755311146,8.46,129.19,129.18,13.0470912]
[1765755311436,8.46,129.19,129.18,17.48127461]
[1765755311641,0.1,129.21,129.18,18.17127461]
[1765755311846,0.7,129.2,129.18,4.43418341]
[1765755312140,0.7,129.2,129.17,4.43418341]
[1765755312538,0.7,129.2,129.16,7.74233508]
[1765755312539,8.46,129.19,129.16,7.74233508]
[1765755312712,0.7,129.18,129.16,7.74233508]
[1765755313131,8.46,129.19,129.17,4.43418341]
[1765755313415,8.46,129.18,129.17,4.43418341]
[1765755313716,9.16,129.19,129.17,4.43418341]
[1765755314120,0.7,129.18,129.16,7.74233508]
[1765755314427,8.46,129.19,129.16,12.17651849]
[1765755314630,9.16,129.19,129.17,4.43418341]
[1765755314831,8.46,129.19,129.17,4.43418341]
[1765755315034,0.7,129.18,129.16,31.53235621]
[1765755315344,8.46,129.19,129.17,4.43418341]
[1765755315642,8.46,129.19,129.18,4.43418341]
[1765755316226,8.46,129.19,129.18,17.48127461]
[1765755316853,8.46,129.19,129.15,7.74284847]
[1765755316854,13.59418341,129.19,129.15,7.74284847]
[1765755317140,0.7,129.18,129.15,7.74293457]
[1765755317350,0.7,129.18,129.14,7.74338466]
[1765755317525,4.43418341,129.17,129.13,7.74399569]
[1765755317728,0.7,129.18,129.13,7.74399569]
[1765755317926,4.43418341,129.16,129.11,7.74517772]
[1765755318129,4.43418341,129.13,129.08,4.43418341]
[1765755318326,13.24412833,129.14,129.08,17.48127461]
[1765755318525,5.13418341,129.13,129.08,13.0470912]
[1765755318747,8.46,129.12,129.08,17.48127461]
[1765755318921,9.16,129.12,129.09,7.74600586]
[1765755319120,0.7,129.11,129.09,7.74600586]
[1765755319515,8.46,129.12,129.09,12.18018927]
[1765755320021,9.16,129.12,129.09,31.54652283]
[1765755320349,0.7,129.11,129.08,31.54882254]
[1765755320545,8.46,129.12,129.1,4.43418341]
[1765755320780,8.46,129.12,129.11,4.43418341]
[1765755321243,8.46,129.12,129.1,7.74593338]
[1765755321445,0.7,129.11,129.1,7.74593338]
[1765755321747,0.7,129.11,129.08,12.18118278]
[1765755321946,0.7,129.11,129.04,19.37340953]
[1765755321947,5.13418341,129.11,129.04,19.37340953]
[1765755322247,0.7,129.11,129.06,4.43418341]
[1765755322448,0.7,129.1,129.06,4.43418341]
[1765755322674,12.89418341,129.09,129.03,4.63418341]
[1765755322868,8.46,129.09,129.04,12.18324606]
[1765755323025,0.7,129.08,129.04,12.18324606]
[1765755323420,0.7,129.08,129.04,14.97638263]
[1765755323957,8.46,129.09,129.06,7.22731998]
[1765755324158,8.46,129.09,129.04,27.81290021]
[1765755324336,9.16,129.09,129.06,7.22731998]
[1765755324648,0.96809169,129.12,129.08,7.22731998]
[1765755324846,8.46,129.12,129.11,7.22731998]
[1765755325060,8.46,129.12,129.11,7.74533343]
[1765755325359,8.46,129.12,129.11,15.66265341]
[1765755326333,8.46,129.12,129.11,14.97265341]
[1765755326643,0.96779188,129.16,129.11,35.005987]
[1765755326951,0.96779188,129.16,129.14,7.22731998]
[1765755327259,0.96779188,129.16,129.13,19.35932142]
[1765755327450,8.80994492,129.13,129.07,7.22731998]
[1765755327765,7.22731998,129.09,129.04,7.74953502]
[1765755327931,8.46,129.08,129.04,7.74953502]
[1765755328131,9.13,129.08,129.04,14.976855]
[1765755328331,0.67,129.07,129.04,14.976855]
[1765755328576,0.67,129.07,129.04,34.35069256]
[1765755328736,8.46,129.08,129.05,7.22731998]
[1765755329141,9.13,129.08,129.06,7.7483341]
[1765755330358,8.46,129.08,129.07,7.2266143]
[1765755331062,8.46,129.08,129.07,14.97434808]
[1765755331236,9.42816667,129.11,129.07,14.97434808]
[1765755331437,9.42816667,129.11,129.07,7.74773378]
[1765755331639,0.67,129.1,129.07,7.74773378]
[1765755331864,0.96831667,129.09,129.07,7.74773378]
[1765755332538,1.63831667,129.09,129.07,7.74773378]
[1765755333070,0.96831667,129.09,129.06,19.3708107]
[1765755333363,0.96824167,129.1,129.06,19.3708107]
[1765755333866,0.96824167,129.1,129.09,7.2266143]
[1765755334038,1.63824167,129.1,129.05,28.02264002]
[1765755334230,0.67,129.09,129.05,28.02264002]
[1765755334436,0.96839169,129.08,129.05,40.16836202]
[1765755334735,0.96824167,129.1,129.07,7.2266143]
[1765755335042,0.96824167,129.1,129.05,40.83836202]
[1765755335249,0.96824167,129.1,129.07,7.2266143]
[1765755335749,1.63824167,129.1,129.07,7.2266143]
[1765755336134,0.96824167,129.1,129.08,7.2266143]
[1765755336447,0.96824167,129.1,129.07,7.2266143]
[1765755337048,0.96824167,129.1,129.09,7.2266143]
[1765755337251,0.96824167,129.1,129.09,14.97314772]
[1765755337643,0.96824167,129.1,129.09,7.74653342]
[1765755338056,0.96809169,129.12,129.09,14.97314772]
[1765755338363,0.96809169,129.12,129.09,27.11286698]
[1765755338539,0.96809169,129.12,129.09,27.78286698]
[1765755338740,0.96801672,129.13,129.11,7.2266143]
[1765755338939,0.96801672,129.13,129.09,27.11286698]
[1765755338940,0.96801672,129.13,129.1,7.2266143]
[1765755339340,0.67,129.12,129.08,20.2737055]
[1765755339555,0.96816667,129.11,129.09,7.74635467]
[1765755339754,0.96816667,129.11,129.08,7.74700189]
[1765755340065,9.42816667,129.11,129.1,7.74593338]
[1765755340239,9.42816667,129.11,129.09,7.74634561]
[1765755340437,10.09816667,129.11,129.09,7.74634561]
[1765755340743,10.09816667,129.11,129.09,7.74634166]
[1765755340939,0.67,129.1,129.07,7.74756388]
[1765755341170,0.96831667,129.09,129.07,7.74756388]
[1765755341346,0.96831667,129.09,129.06,7.7483341]
[1765755341547,0.96831667,129.09,129.06,14.9749484]
[1765755342042,0.96839169,129.08,129.06,14.9749484]
[1765755342369,1.63824167,129.1,129.06,7.7483341]
[1765755342743,1.63824167,129.1,129.06,14.9749484]
[1765755343883,1.63824167,129.1,129.08,7.2266143]
[1765755343884,0.96824167,129.1,129.08,7.2266143]
[1765755344548,0.96824167,129.1,129.09,7.2266143]
[1765755344745,0.96824167,129.1,129.07,7.2266143]
[1765755345057,0.96824167,129.1,129.08,7.2266143]
[1765755345239,0.96824167,129.1,129.07,7.2266143]
[1765755345435,1.63824167,129.1,129.07,7.2266143]
[1765755345638,1.63824167,129.1,129.06,27.11916937]
[1765755345834,0.96824167,129.1,129.07,7.2266143]
[1765755346079,0.67,129.09,129.06,7.7483341]
[1765755346369,0.67,129.09,129.03,0.2]
[1765755346370,13.0470912,129.04,129.03,0.2]
[1765755346539,28.7337055,129.04,129.03,0.2]
[1765755346747,8.80994492,129.03,128.98,7.75304855]
[1765755346944,8.80994492,129.03,128.97,0.2]
[1765755346945,7.2266143,129.01,128.97,7.95332856]
[1765755347167,9.13,129.0,128.97,0.2]
[1765755347345,8.46,129.0,128.98,7.75300046]
[1765755347871,8.46,129.0,128.97,0.2]
[1765755347872,8.46,129.0,128.97,15.18017287]
[1765755348241,8.46,129.0,128.97,0.2]
[1765755348242,0.67,128.99,128.97,0.2]
[1765755348560,8.46,129.0,128.97,15.18030532]
[1765755348760,9.13,129.0,128.97,15.18030532]
[1765755349377,8.46,129.0,128.97,15.18030532]
[1765755350068,8.46,129.0,128.98,7.2266143]
[1765755350268,8.46,129.0,128.97,15.18030532]
[1765755350578,0.67,128.99,128.97,7.95369102]
[1765755350761,8.46,129.0,128.97,7.95369102]
[1765755350762,9.13,129.0,128.97,7.95369102]
[1765755351689,9.13,129.0,128.98,0.67]
[1765755351690,8.46,129.0,128.98,0.67]
[1765755351979,0.96861681,129.05,128.99,34.36050064]
[1765755352181,0.96869187,129.04,129.02,7.2266143]
[1765755352365,0.96854176,129.06,129.02,7.2266143]
[1765755352567,0.96854176,129.06,128.99,27.80388634]
[1765755352568,1.63854176,129.06,128.99,27.80388634]
[1765755352771,0.67,129.05,129.01,7.2266143]
[1765755352982,29.8,129.03,129.01,7.2266143]
[1765755353176,9.42869187,129.04,129.02,7.2266143]
[1765755353377,9.42869187,129.04,128.99,27.13388634]
[1765755353378,9.42869187,129.04,129.01,7.2266143]
[1765755353677,10.09869187,129.04,129.01,7.2266143]
[1765755353864,10.09869187,129.04,129.02,7.75073631]
[1765755354064,9.42869187,129.04,129.02,14.97735061]
[1765755354277,10.09869187,129.04,129.01,14.97778143]
[1765755354479,0.67,129.03,128.98,26.60914357]
[1765755354675,0.96884203,129.02,128.98,19.38252927]
[1765755354994,8.46,129.01,128.99,7.75252137]
[1765755355294,9.13,129.01,128.99,7.75252137]
[1765755355588,8.46,129.01,129.0,7.75193798]
[1765755356795,9.12,129.01,128.98,7.75260806]
[1765755356997,9.12,129.01,128.99,7.7525262]
[1765755357297,9.12,129.01,128.98,7.75297459]
[1765755357494,0.66,129.0,128.98,7.75297459]
[1765755357790,82.8866143,129.0,128.97,0.2]
[1765755358096,29.8,128.99,128.97,0.2]
[1765755358287,8.46,128.98,128.97,0.2]
[1765755358598,8.46,128.98,128.97,7.95374118]
[1765755358776,9.12,128.98,128.97,7.95374118]
[1765755359298,8.46,128.98,128.97,7.95374118]
[1765755359991,30.76906736,128.99,128.97,15.85035548]
[1765755360166,29.8,128.99,128.98,7.2266143]
[1765755360363,29.8,128.99,128.98,7.8966143]
[1765755360592,29.8,128.99,128.98,0.67]
[1765755360789,29.8,128.99,128.98,7.8966143]
[1765755361094,29.8,128.99,128.97,7.95374118]
[1765755361302,1.6291425,128.98,128.97,0.2]
[1765755361767,8.8557568,128.98,128.97,0.2]
[1765755361962,0.9691425,128.98,128.97,0.2]
[1765755362192,0.9691425,128.98,128.97,7.95374118]
[1765755362575,0.9691425,128.98,128.97,15.18035548]
[1765755362775,29.8,128.99,128.97,15.85035548]
[1765755362991,0.96899224,129.0,128.98,7.2266143]
[1765755363192,1.62899224,129.0,128.97,7.95374118]
[1765755363697,0.96884203,129.02,128.99,7.2266143]
[1765755363870,8.48,129.04,129.01,14.9779514]
[1765755364068,0.96876695,129.03,129.01,7.7513371]
[1765755364262,1.62876695,129.03,129.01,7.7513371]
[1765755364678,0.96876695,129.03,129.02,7.2266143]
[1765755364977,29.8,129.02,129.01,14.9779514]
[1765755365493,29.8,129.02,129.01,15.6479514]
[1765755365708,0.96846672,129.07,129.01,43.50629416]
[1765755365891,0.66,129.1,129.04,7.2266143]
[1765755365892,9.14,129.08,129.04,7.2266143]
[1765755366093,9.14,129.08,129.02,7.2266143]
[1765755366094,0.96846672,129.07,129.02,7.2266143]
[1765755366265,1.62846672,129.07,129.01,27.12967986]
[1765755366465,0.96846672,129.07,129.02,0.67]
[1765755366673,0.96846672,129.07,129.06,7.2266143]
[1765755366871,0.96846672,129.07,129.05,7.2266143]
[1765755367290,0.66,129.06,129.04,7.2266143]
[1765755367605,9.44861681,129.05,129.01,7.7513371]
[1765755367978,0.66,129.04,129.01,34.36030397]
[1765755368177,0.96876695,129.03,129.01,34.36030397]
[1765755368406,0.96876695,129.03,129.0,7.75180654]
[1765755368582,9.14,129.02,128.99,7.75235907]
[1765755368769,9.14,129.02,128.97,0.2]
[1765755368770,0.96891713,129.01,128.97,0.2]
[1765755368969,0.96891713,129.01,128.99,7.75213163]
[1765755368970,1.62891713,129.01,128.99,7.75213163]
[1765755369177,1.62891713,129.01,128.97,7.43062411]
[1765755369473,0.96891713,129.01,129.0,14.98256209]
[1765755369671,9.14,129.04,129.0,14.98256209]
[1765755369672,0.96869187,129.04,129.0,14.98256209]
[1765755369995,0.96869187,129.04,129.01,7.23062411]
[1765755370194,1.62869187,129.04,129.01,7.23062411]
[1765755370499,0.96869187,129.04,129.01,7.23062411]
[1765755370699,1.62869187,129.04,129.01,7.23062411]
[1765755370999,0.96861681,129.05,129.02,7.23062411]
[1765755371199,1.62861681,129.05,129.01,7.23062411]
[1765755371371,0.66,129.04,129.0,7.23062411]
[1765755371567,91.67939106,129.03,128.99,7.75253895]
[1765755371972,0.66,129.02,128.98,27.13560693]
[1765755372175,0.96884203,129.02,129.01,7.23062411]
[1765755372380,0.96884203,129.02,129.0,7.23062411]
[1765755373074,0.96884203,129.02,129.01,7.23062411]
[1765755373598,9.44854176,129.06,129.01,7.23062411]
[1765755373784,10.10854176,129.06,129.02,7.23062411]
[1765755373967,10.10854176,129.06,129.03,7.75013562]
[1765755374169,9.44854176,129.06,129.03,7.75013562]
[1765755374376,10.10854176,129.06,129.03,34.35609879]
[1765755374676,0.66,129.05,129.03,14.98075973]
[1765755375005,9.44854176,129.06,129.04,7.23062411]
[1765755375500,10.10854176,129.06,129.03,27.12547468]
[1765755375702,10.10854176,129.06,129.05,7.23062411]
[1765755375703,9.44854176,129.06,129.05,7.23062411]
[1765755375883,1.62824167,129.1,129.05,34.35189493]
[1765755376088,0.96809169,129.12,129.09,7.23062411]
[1765755376290,0.66,129.14,129.11,7.23062411]
[1765755376483,0.96801672,129.13,129.12,7.23062411]
[1765755376683,0.96794176,129.14,129.12,7.23062411]
[1765755377286,8.48,129.15,129.13,7.23062411]
[1765755378209,0.96779188,129.16,129.14,7.23062411]
[1765755378380,1.62779188,129.16,129.13,34.33509246]
[1765755378578,0.66,129.15,129.09,13.0470912]
[1765755378779,0.96794176,129.14,129.11,7.74506393]
[1765755378987,0.66,129.13,129.07,7.23062411]
[1765755379191,9.39813396,129.12,129.08,7.74668388]
[1765755379593,0.66,129.11,129.08,7.74668388]
[1765755379802,0.93813396,129.11,129.08,27.78451778]
[1765755380019,1.59813396,129.11,129.09,7.23062411]
[1765755380622,0.66,129.1,129.07,7.74761874]
[1765755380788,9.39813396,129.09,129.05,7.23062411]
[1765755380988,9.39813396,129.09,129.06,14.97852325]
[1765755381205,10.05813396,129.09,129.06,14.97852325]
[1765755381404,9.39813396,129.09,129.07,7.23062411]
[1765755381590,9.39813396,129.09,129.08,14.97775767]
[1765755381993,9.39813396,129.12,129.1,7.74593338]
[1765755382308,0.93813396,129.11,129.1,7.74593338]
[1765755382823,8.46,129.12,129.08,19.36744536]
[1765755383117,1.59813396,129.11,129.07,7.74773378]
[1765755383299,0.93813396,129.11,129.1,7.23062411]
[1765755383811,0.93813396,129.11,129.09,7.23062411]
[1765755384822,0.93813396,129.11,129.09,14.97672571]
[1765755385028,0.93813396,129.11,129.1,7.23062411]
[1765755385182,1.59813396,129.11,129.08,14.97766497]
[1765755385387,1.59813396,129.11,129.08,12.1917421]
[1765755385696,0.93813396,129.11,129.09,12.19120184]
[1765755385896,0.93813396,129.11,129.1,4.44470124]
[1765755386295,1.59813396,129.11,129.08,4.44470124]
[1765755386495,1.59813396,129.11,129.08,12.19174188]
[1765755387794,0.7,129.1,129.07,4.44470124]
[1765755387991,9.39813396,129.09,129.05,12.19352099]
[1765755388214,9.39813396,129.09,129.04,12.19370785]
[1765755388414,10.09813396,129.09,129.06,12.19261826]
[1765755388713,9.39813396,129.09,129.07,12.19242136]
[1765755389218,9.39813396,129.09,129.05,19.37150825]
[1765755389219,10.09813396,129.09,129.06,12.1928353]
[1765755389512,10.09813396,129.09,129.07,7.74757709]
[1765755389918,10.09813396,129.09,129.07,12.19227833]
[1765755390109,10.09813396,129.09,129.07,4.44470124]
[1765755390294,10.09813396,129.09,129.07,12.19240106]
[1765755390808,9.39813396,129.09,129.07,12.19240106]
[1765755391390,9.39813396,129.09,129.08,4.44470124]
[1765755391587,10.09813396,129.09,129.07,12.19240106]
[1765755391787,10.09813396,129.09,129.07,4.44470124]
[1765755392011,10.09813396,129.09,129.06,12.19262866]
[1765755392311,10.09813396,129.09,129.07,7.74768207]
[1765755392508,9.39813396,129.09,129.07,12.19238331]
[1765755392893,10.09813396,129.09,129.06,4.44470124]
[1765755393094,10.09813396,129.09,129.06,12.19278429]
[1765755393322,9.39813396,129.09,129.06,12.19278429]
[1765755393924,0.7,129.08,129.06,12.19278429]
[1765755394126,0.93813396,129.07,129.05,7.74880446]
[1765755394305,0.93813396,129.07,129.04,7.74936423]
[1765755394620,0.93813396,129.07,129.03,4.44470124]
[1765755394621,9.16,129.06,129.03,7.74999148]
[1765755394846,9.16,129.06,129.03,4.44470124]
[1765755395140,8.46,129.06,129.05,7.74893452]
[1765755395495,1.63813396,129.07,129.03,19.37439969]
[1765755395837,0.7,129.06,128.99,19.38063516]
[1765755396014,0.7,129.06,129.02,7.75066144]
[1765755396015,8.46,129.05,129.02,7.75066144]
[1765755396216,8.46,129.05,129.01,12.19581454]
[1765755396410,8.46,129.05,129.02,7.75068097]
[1765755396411,9.16,129.05,129.02,7.75068097]
[1765755396604,9.16,129.05,129.03,7.75007937]
[1765755396905,9.16,129.05,129.02,12.19533221]
[1765755397221,9.16,129.05,129.03,7.75007154]
[1765755397950,0.7,129.04,129.02,7.75060595]
[1765755398231,9.16,129.05,129.02,7.75060595]
[1765755398430,9.16,129.05,129.02,12.19530719]
[1765755399036,9.16,129.05,129.02,7.75060595]
[1765755399234,9.16,129.05,129.02,12.19530719]
[1765755399410,9.16,129.05,129.02,31.57214798]
[1765755399720,9.16,129.05,129.01,12.19598833]
[1765755399721,0.7,129.04,129.01,12.19598833]
[1765755399923,0.7,129.04,129.0,4.44470124]
[1765755400127,0.7,129.04,129.01,7.7513019]
[1765755400330,0.7,129.04,129.02,7.75067045]
[1765755400517,114.09813396,129.05,129.02,7.75067045]
[1765755400700,114.79813396,129.05,129.02,7.75067045]
[1765755402004,0.7,129.04,129.02,7.75067045]
[1765755403222,0.7,129.04,129.0,27.13086333]
[1765755403523,0.7,129.04,129.0,32.25556457]
[1765755403699,0.93813396,129.03,129.0,32.25556457]
[1765755404330,0.93813396,129.03,129.0,27.13086333]
[1765755404506,0.93813396,129.03,129.0,7.75193798]
[1765755404507,9.16,129.02,129.0,7.75193798]
[1765755405135,0.93813396,129.03,129.01,5.12470124]
[1765755405300,0.93813396,129.03,129.02,7.75073631]
[1765755405500,0.93813396,129.03,129.0,7.7517198]
[1765755405808,1.63813396,129.03,129.0,7.7517198]
[1765755406018,0.7,129.02,129.0,7.7517198]
[1765755406613,8.46,129.01,128.98,7.75310871]
[1765755407008,0.93813396,129.03,129.01,7.75112724]
[1765755407208,0.93813396,129.03,129.0,7.75193798]
[1765755407531,0.93813396,129.03,129.0,31.58281648]
[1765755407834,0.93813396,129.03,129.0,32.26281648]
[1765755408137,0.93813396,129.03,129.0,31.58281648]
[1765755408337,0.93813396,129.03,129.01,0.68]
[1765755408548,0.93813396,129.03,129.0,31.58281648]
[1765755408833,0.93813396,129.03,129.0,32.26281648]
[1765755411136,0.7,129.02,128.99,7.75252406]
[1765755411353,9.39813396,129.01,128.97,7.95359488]
[1765755411514,9.39813396,129.01,128.97,0.2]
[1765755411515,13.8491675,129.01,128.97,0.2]
[1765755411850,0.7,129.0,128.97,0.2]
[1765755412633,0.7,129.0,128.97,7.95367357]
[1765755413048,0.7,129.0,128.97,0.2]
[1765755414519,5.15103354,129.0,128.97,0.2]
[1765755414920,0.7,128.99,128.97,0.2]
[1765755415145,8.48,128.98,128.97,0.2]
[1765755415847,0.93813396,129.02,128.97,32.46912767]
[1765755416023,9.41813396,129.05,129.01,4.45103354]
[1765755416223,9.41813396,129.05,129.02,0.68]
[1765755416441,8.48,129.05,129.02,0.68]
[1765755416641,8.48,129.05,129.04,4.45103354]
[1765755416941,1.63813396,129.07,129.04,12.20056856]
[1765755417145,9.18,129.07,129.05,4.45103354]
[1765755417350,0.93813396,129.06,129.04,7.74953502]
[1765755417555,0.93813396,129.06,129.05,4.45103354]
[1765755417783,0.93813396,129.06,129.03,12.20097732]